bitfinex-derivatives/quotes_SOLF0:USTF0_20220101
["timestamp","ask_amount","ask_price","bid_price","bid_amount"]
[1641054764444,49.02666453,174.37,174.23,5.0]
[1641054764643,49.02666453,174.37,174.3,3.0]
[1641054764844,7.65117958,174.37,174.36,2.0]
[1641054765446,7.65117958,174.37,174.36,2.6520691]
[1641054765847,8.4,174.39,174.36,2.0]
[1641054766047,33.39742013,174.45,174.36,2.0]
[1641054766245,33.39742013,174.45,174.42,2.0]
[1641054766446,33.39742013,174.45,174.39,2.0]
[1641054766744,11.90666672,174.44,174.34,27.66479]
[1641054766947,27.66479,174.42,174.34,27.66479]
[1641054767345,4.25888645,174.43,174.35,2.0]
[1641054767545,10.90666672,174.41,174.34,27.66479]
[1641054768146,3.25888645,174.4,174.34,27.66479]
[1641054768549,19.45467356,174.44,174.38,2.0]
[1641054768748,19.45467356,174.44,174.36,3.0]
[1641054768948,3.25849337,174.43,174.41,2.0]
[1641054769447,27.97467356,174.47,174.42,2.0]
[1641054769649,27.97467356,174.47,174.41,2.0]
[1641054769848,3.25805372,174.46,174.36,3.0]
[1641054770249,3.25805372,174.46,174.43,2.0]
[1641054770451,3.25805372,174.47,174.36,3.0]
[1641054770750,3.25805372,174.47,174.39,2.0]
[1641054770950,3.25805372,174.47,174.39,27.66479]
[1641054771151,3.25805372,174.47,174.41,2.0]
[1641054771450,3.25805372,174.48,174.41,2.0]
[1641054771749,3.25805372,174.48,174.42,0.65162258]
[1641054772350,3.25805372,174.48,174.4,2.65162258]
[1641054772751,3.25805372,174.48,174.41,0.65162258]
[1641054772950,5.73246582,174.46,174.41,0.65162258]
[1641054773151,5.73246582,174.46,174.4,0.65162258]
[1641054773753,3.25805372,174.45,174.4,0.65162258]
[1641054774251,3.25805372,174.45,174.41,2.0]
[1641054774451,3.25805372,174.45,174.43,2.0]
[1641054775052,27.66479,174.46,174.44,0.65162258]
[1641054775953,27.66479,174.46,174.43,0.65162258]
[1641054776754,10.90158832,174.45,174.43,0.65162258]
[1641054777053,7.64366698,174.45,174.43,0.65162258]
[1641054777454,8.74,174.49,174.43,0.65162258]
[1641054778056,3.25770711,174.48,174.43,0.65162258]
[1641054779461,3.25770711,174.48,174.42,0.65162258]
[1641054779759,10.90062675,174.48,174.4,0.65162258]
[1641054779960,10.90062675,174.48,174.41,2.0]
[1641054780459,5.10595004,174.47,174.41,2.0]
[1641054780862,3.25770711,174.46,174.42,0.65162258]
[1641054781760,3.25770711,174.46,174.42,2.65162258]
[1641054782061,36.40479,174.49,174.42,2.65162258]
[1641054782062,3.25770711,174.48,174.42,2.65162258]
[1641054782260,3.25770711,174.48,174.42,0.65162258]
[1641054782461,3.25770711,174.45,174.43,0.65162258]
[1641054783361,3.25770711,174.48,174.4,0.65162258]
[1641054784964,3.25770711,174.48,174.42,27.66479]
[1641054785668,3.25770711,174.48,174.43,0.65162258]
[1641054786272,3.25770711,174.48,174.44,34.0285924]
[1641054786971,3.25770711,174.48,174.43,43.3267751]
[1641054787175,3.25770711,174.48,174.45,0.65162258]
[1641054787471,3.25770711,174.48,174.44,0.65162258]
[1641054787672,1.0,174.45,174.44,0.65162258]
[1641054787871,1.0,174.45,174.4,12.78160977]
[1641054788075,1.0,174.42,174.4,12.78160977]
[1641054788273,6.73378057,174.42,174.4,12.78160977]
[1641054788472,6.73378057,174.42,174.4,9.78160977]
[1641054788674,5.0,174.46,174.38,48.8082743]
[1641054788874,5.73279445,174.45,174.32,30.7487]
[1641054789072,5.73279445,174.45,174.36,2.0]
[1641054789273,27.66479,174.43,174.36,2.0]
[1641054789575,27.66479,174.43,174.37,0.65171671]
[1641054789773,3.25858356,174.42,174.37,0.65171671]
[1641054791075,3.25858356,174.42,174.36,2.0]
[1641054791676,3.25858356,174.42,174.37,0.65171671]
[1641054794478,12.220541,174.41,174.37,0.65171671]
[1641054794678,12.220541,174.41,174.37,2.65171671]
[1641054795180,3.25858356,174.42,174.39,4.07350774]
[1641054795380,12.220541,174.43,174.39,4.07350774]
[1641054795779,3.25835561,174.42,174.4,0.65171671]
[1641054797483,15.47889661,174.42,174.4,0.65171671]
[1641054798182,15.47889661,174.41,174.37,0.65171671]
[1641054798782,12.220541,174.41,174.37,0.65171671]
[1641054799382,12.220541,174.41,174.38,2.0]
[1641054799783,12.220541,174.41,174.37,0.65171671]
[1641054799984,12.220541,174.42,174.37,0.65171671]
[1641054800185,12.220541,174.42,174.38,2.0]
[1641054800382,12.220541,174.42,174.37,0.65171671]
[1641054800583,12.220541,174.42,174.39,0.65171671]
[1641054800983,3.25852021,174.41,174.37,0.65171671]
[1641054801384,12.220541,174.4,174.37,0.65171671]
[1641054803183,39.885331,174.4,174.37,0.65171671]
[1641054804885,39.885331,174.4,174.36,2.0]
[1641054805386,39.885331,174.4,174.37,0.65171671]
[1641054807587,39.885331,174.4,174.37,2.65171671]
[1641054808086,39.885331,174.4,174.38,0.65171671]
[1641054810987,12.220541,174.39,174.34,4.72522445]
[1641054811588,12.220541,174.39,174.35,0.65171671]
[1641054812789,12.220541,174.39,174.36,2.0]
[1641054812991,12.220541,174.39,174.35,0.65171671]
[1641054813392,12.220541,174.39,174.38,2.0]
[1641054813590,12.220541,174.39,174.37,2.0]
[1641054813790,12.220541,174.39,174.38,0.65171671]
[1641054814690,12.220541,174.39,174.37,2.0]
[1641054815091,12.220541,174.39,174.38,0.65171671]
[1641054815497,12.220541,174.39,174.33,0.65171671]
[1641054815690,12.220541,174.39,174.38,2.0]
[1641054816392,12.220541,174.39,174.38,2.65171671]
[1641054816591,8.95670147,174.39,174.38,2.65171671]
[1641054817392,8.95670147,174.39,174.38,0.65171671]
[1641054817593,8.95670147,174.39,174.38,2.65171671]
[1641054817792,8.95670147,174.39,174.38,2.0]
[1641054818097,8.95670147,174.39,174.33,0.65171671]
[1641054818494,8.95670147,174.39,174.38,0.65171671]
[1641054818994,8.95670147,174.39,174.33,0.65171671]
[1641054819194,8.95670147,174.39,174.38,2.0]
[1641054820095,8.95670147,174.39,174.38,2.65171671]
[1641054820995,8.95670147,174.39,174.38,0.65171671]
[1641054821396,8.95670147,174.39,174.33,0.65171671]
[1641054821897,12.18640072,174.37,174.33,0.65171671]
[1641054823099,12.18640072,174.37,174.36,2.0]
[1641054823800,12.18640072,174.37,174.36,2.65171671]
[1641054827103,41.49128471,174.39,174.36,2.65171671]
[1641054827303,41.49128471,174.39,174.38,2.0]
[1641054827501,41.49128471,174.39,174.38,60.32958]
[1641054827701,41.49128471,174.39,174.38,66.94729671]
[1641054828105,8.95670147,174.39,174.38,66.94729671]
[1641054829205,32.53458324,174.45,174.38,66.94729671]
[1641054829410,32.53458324,174.45,174.43,27.66479]
[1641054829806,32.53458324,174.45,174.44,0.65171671]
[1641054832211,2.34854733,174.46,174.44,0.65171671]
[1641054833113,9.95670147,174.48,174.44,0.65171671]
[1641054833114,2.34854733,174.47,174.44,0.65171671]
[1641054833715,2.34854733,174.47,174.45,2.0]
[1641054833913,2.34854733,174.47,174.46,2.0]
[1641054834315,2.34854733,174.47,174.46,2.65171671]
[1641054835317,2.34854733,174.49,174.46,2.65171671]
[1641054835717,2.34854733,174.49,174.46,3.65171671]
[1641054835918,4.04554324,174.47,174.46,3.65171671]
[1641054836117,4.04554324,174.47,174.46,3.0]
[1641054836618,4.04554324,174.47,174.46,2.0]
[1641054836819,4.04554324,174.47,174.46,5.0]
[1641054837020,4.04554324,174.47,174.46,2.0]
[1641054837921,4.04547245,174.48,174.46,5.0]
[1641054838121,4.04547245,174.48,174.45,3.0]
[1641054838622,4.04547245,174.47,174.45,3.0]
[1641054839224,4.04547245,174.48,174.45,3.0]
[1641054839724,4.04547245,174.48,174.47,2.0]
[1641054841225,4.04547245,174.48,174.47,5.0]
[1641054841629,4.04547245,174.48,174.47,2.0]
[1641054843128,2.34854733,174.51,174.47,2.0]
[1641054843328,2.34854733,174.51,174.5,2.0]
[1641054843929,2.34854733,174.52,174.5,2.0]
[1641054844130,2.34854733,174.52,174.51,2.0]
[1641054845530,32.53458324,174.52,174.51,2.0]
[1641054846531,32.53458324,174.52,174.5,2.0]
[1641054846730,32.53458324,174.52,174.46,27.66479]
[1641054847130,32.53458324,174.52,174.51,2.0]
[1641054848532,32.53458324,174.53,174.51,2.0]
[1641054848731,32.53458324,174.53,174.46,27.66479]
[1641054848931,32.53458324,174.53,174.5,2.0]
[1641054849635,32.53458324,174.53,174.46,27.66479]
[1641054850434,32.53458324,174.52,174.46,27.66479]
[1641054850835,32.53458324,174.51,174.46,27.66479]
[1641054851036,32.53458324,174.51,174.5,2.0]
[1641054851635,32.53458324,174.51,174.5,2.65134092]
[1641054852436,32.53458324,174.51,174.5,0.65134092]
[1641054852838,32.53458324,174.51,174.47,0.65134092]
[1641054853137,32.53458324,174.51,174.5,2.0]
[1641054853338,32.53458324,174.54,174.5,2.0]
[1641054853540,32.53458324,174.54,174.47,0.65134092]
[1641054853738,3.25679687,174.53,174.51,0.65134092]
[1641054853939,5.6053442,174.53,174.51,0.65134092]
[1641054854841,2.34854733,174.52,174.51,0.65134092]
[1641054855039,2.34854733,174.52,174.51,2.65134092]
[1641054855738,2.34854733,174.54,174.51,2.65134092]
[1641054856139,2.34854733,174.54,174.51,0.65134092]
[1641054856339,2.34854733,174.54,174.52,0.65134092]
[1641054856542,11.3206953,174.55,174.52,0.65134092]
[1641054856742,11.3206953,174.55,174.51,2.65134092]
[1641054857140,3.25645714,174.54,174.52,0.65134092]
[1641054857941,3.25645714,174.54,174.51,0.65134092]
[1641054858440,2.34854733,174.53,174.51,0.65134092]
[1641054859042,2.34854733,174.53,174.51,2.65134092]
[1641054859443,2.34854733,174.53,174.52,0.65134092]
[1641054859945,2.34854733,174.54,174.51,2.65134092]
[1641054860343,2.34854733,174.54,174.52,0.65134092]
[1641054860543,11.3206953,174.55,174.52,0.65134092]
[1641054861445,3.25647255,174.54,174.51,2.0]
[1641054861844,3.25647255,174.54,174.52,0.65134092]
[1641054862346,34.88313057,174.53,174.52,0.65134092]
[1641054863651,34.88313057,174.53,174.5,0.65134092]
[1641054863853,32.53458324,174.53,174.5,0.65134092]
[1641054864253,32.53458324,174.53,174.52,2.0]
[1641054864452,32.53458324,174.53,174.52,2.65134092]
[1641054869462,32.53458324,174.53,174.52,5.65134092]
[1641054869761,11.3206953,174.55,174.52,33.31613092]
[1641054869963,8.66,174.61,174.54,2.0]
[1641054870163,12.20832349,174.57,174.54,2.0]
[1641054870363,12.20832349,174.57,174.56,2.0]
[1641054870963,12.20754239,174.58,174.56,2.65134092]
[1641054871164,12.20754239,174.58,174.57,2.0]
[1641054871463,12.20754239,174.58,174.57,2.65134092]
[1641054871863,12.20754239,174.58,174.57,30.31613092]
[1641054872363,8.18623591,174.61,174.57,30.31613092]
[1641054872364,12.20693659,174.59,174.57,30.31613092]
[1641054872663,12.20693659,174.59,174.58,2.0]
[1641054872862,12.20693659,174.59,174.58,2.65134092]
[1641054873663,10.23877918,174.61,174.58,2.65134092]
[1641054873864,2.05254327,174.62,174.58,2.65134092]
[1641054874065,2.05254327,174.62,174.59,0.65134092]
[1641054874369,3.25533545,174.61,174.59,0.65134092]
[1641054875164,2.05254327,174.6,174.59,0.65134092]
[1641054875365,2.05254327,174.6,174.58,0.65134092]
[1641054875568,2.05254327,174.6,174.58,2.65134092]
[1641054875767,2.05254327,174.6,174.58,0.65134092]
[1641054875966,12.20692698,174.59,174.58,0.65134092]
[1641054877167,3.05254327,174.61,174.58,0.65134092]
[1641054877567,2.05254327,174.61,174.58,0.65134092]
[1641054877768,3.25559033,174.6,174.57,0.65134092]
[1641054878171,5.3081336,174.6,174.57,0.65134092]
[1641054878769,32.9617,174.62,174.57,0.65134092]
[1641054878974,1.0,174.61,174.57,0.65134092]
[1641054879170,32.9617,174.62,174.57,0.65134092]
[1641054879371,2.03362134,174.6,174.57,0.65134092]
[1641054880170,3.25560029,174.59,174.56,2.0]
[1641054880472,3.25560029,174.59,174.57,0.65134092]
[1641054881472,3.25560029,174.6,174.55,2.0]
[1641054881672,3.25560029,174.6,174.52,27.66479]
[1641054881872,60.62649,174.62,174.52,27.66479]
[1641054882073,60.62649,174.62,174.55,2.0]
[1641054882372,60.62649,174.62,174.52,27.66479]
[1641054882574,2.03369311,174.61,174.52,27.66479]
[1641054882775,5.28935914,174.61,174.55,2.0]
[1641054883178,12.20692698,174.56,174.55,2.0]
[1641054883879,2.03369311,174.59,174.55,2.0]
[1641054884080,2.03369311,174.59,174.56,2.0]
[1641054884880,12.20820318,174.57,174.54,2.0]
[1641054885380,1.0,174.6,174.54,2.0]
[1641054885581,12.20918242,174.56,174.54,2.0]
[1641054885782,12.20918242,174.56,174.52,27.66479]
[1641054886382,3.0,174.54,174.52,27.66479]
[1641054886581,12.20918242,174.55,174.51,4.0691808]
[1641054887283,12.21100627,174.53,174.49,4.0691808]
[1641054888385,2.03369311,174.56,174.49,4.0691808]
[1641054888884,3.25648015,174.55,174.49,4.0691808]
[1641054889083,3.25648015,174.55,174.48,6.08570287]
[1641054889385,12.21157289,174.52,174.48,6.08570287]
[1641054889584,2.03369311,174.54,174.48,6.08570287]
[1641054890487,12.21163675,174.52,174.48,6.08570287]
[1641054891387,32.56436467,174.56,174.48,6.08570287]
[1641054891989,3.2563648,174.55,174.48,6.08570287]
[1641054892189,12.21147767,174.52,174.48,6.08570287]
[1641054892588,34.59805778,174.56,174.48,6.08570287]
[1641054892789,8.18751397,174.57,174.48,6.08570287]
[1641054892790,12.2107672,174.53,174.49,4.0691808]
[1641054893592,42.78557175,174.57,174.49,4.0691808]
[1641054894090,3.25648024,174.56,174.49,4.0691808]
[1641054894290,3.25648024,174.56,174.48,2.01652207]
[1641054894291,12.21161843,174.52,174.48,6.08570287]
[1641054895092,32.56436467,174.56,174.48,6.08570287]
[1641054895290,2.03369311,174.55,174.48,6.08570287]
[1641054895591,5.29016041,174.55,174.48,6.08570287]
[1641054895990,12.21144968,174.52,174.48,6.08570287]
[1641054896592,12.21144968,174.52,174.49,0.65140138]
[1641054896792,3.0,174.53,174.49,0.65140138]
[1641054896992,5.03369311,174.53,174.47,25.45619138]
[1641054897194,2.03369311,174.53,174.47,25.45619138]
[1641054897395,5.03369311,174.53,174.47,25.45619138]
[1641054898496,3.25690233,174.52,174.48,0.65138047]
[1641054898796,5.29059544,174.52,174.48,0.65138047]
[1641054899196,2.03369311,174.51,174.48,0.65138047]
[1641054900196,2.03369311,174.53,174.48,0.65138047]
[1641054902500,2.03369311,174.55,174.48,0.65138047]
[1641054903301,10.53369311,174.55,174.48,0.65138047]
[1641054904504,2.03369311,174.54,174.48,0.65138047]
[1641054905510,2.03369311,174.54,174.47,0.65138047]
[1641054905907,34.06329311,174.54,174.47,0.65138047]
[1641054906308,12.14451657,174.52,174.48,6.08567266]
[1641054906908,12.14451657,174.52,174.49,0.65138047]
[1641054907110,12.14451657,174.5,174.49,0.65138047]
[1641054907408,12.14451657,174.5,174.47,0.65138047]
[1641054908210,29.69848311,174.52,174.47,0.65138047]
[1641054908509,27.66479,174.52,174.47,0.65138047]
[1641054908710,27.66479,174.52,174.47,5.51038047]
[1641054909014,12.21295745,174.5,174.47,5.51038047]
[1641054909309,12.21295745,174.5,174.48,0.65138047]
[1641054910211,2.03369311,174.51,174.48,0.65138047]
[1641054910412,14.24622849,174.51,174.48,0.65138047]
[1641054911012,12.21253538,174.52,174.48,4.72056127]
[1641054911614,12.21253538,174.52,174.49,0.65138047]
[1641054911812,2.03369311,174.53,174.49,0.65138047]
[1641054912012,14.24519934,174.53,174.49,0.65138047]
[1641054912613,14.24519934,174.53,174.49,4.72056127]
[1641054913214,14.24519934,174.53,174.5,0.65138047]
[1641054913414,12.21150623,174.52,174.5,0.65138047]
[1641054914217,12.21150623,174.52,174.49,0.65138047]
[1641054916517,10.22510407,174.53,174.48,0.65138047]
[1641054916718,10.22510407,174.53,174.48,4.72056127]
[1641054916719,12.20270157,174.53,174.48,4.72056127]
[1641054917216,12.20270157,174.53,174.49,0.65138047]
[1641054917416,12.20270157,174.53,174.49,6.73565874]
[1641054917619,14.23639468,174.54,174.49,6.73565874]
[1641054918319,14.23639468,174.54,174.5,0.65138047]
[1641054923123,14.23639468,174.54,174.48,4.0691808]
[1641054923124,14.23639468,174.54,174.49,4.72056127]
[1641054923523,14.23639468,174.54,174.5,0.65138047]
[1641054925424,14.23639468,174.54,174.5,6.97638047]
[1641054925626,14.23639468,174.54,174.5,9.97638047]
[1641054925824,14.23639468,174.54,174.51,0.65138047]
[1641054926429,12.20270157,174.57,174.52,6.08578172]
[1641054927227,12.20270157,174.57,174.53,0.65138047]
[1641054927640,4.06936187,174.54,174.53,4.72056127]
[1641054928227,12.20270157,174.58,174.53,4.72056127]
[1641054928428,12.20270157,174.55,174.53,0.65138047]
[1641054929229,12.20270157,174.55,174.52,0.65138047]
[1641054929630,12.20925282,174.56,174.52,0.65138047]
[1641054930231,12.20925282,174.56,174.52,4.72056127]
[1641054931134,12.20925282,174.56,174.53,0.65138047]
[1641054931335,34.59805778,174.6,174.53,0.65138047]
[1641054931336,12.20925282,174.57,174.53,6.73716154]
[1641054931735,12.20925282,174.57,174.54,0.65138047]
[1641054932138,12.20925282,174.56,174.54,0.65138047]
[1641054932738,12.20925282,174.56,174.53,0.65138047]
[1641054932937,12.20870962,174.57,174.53,0.65138047]
[1641054934137,12.20870962,174.56,174.53,0.65138047]
[1641054934437,15.20870962,174.56,174.53,0.65138047]
[1641054934836,3.0,174.56,174.53,0.65138047]
[1641054935538,2.03369311,174.55,174.53,0.65138047]
[1641054936538,3.0,174.56,174.53,0.65138047]
[1641054938043,3.0,174.56,174.52,0.65138047]
[1641054943247,3.0,174.55,174.52,0.65138047]
[1641054944648,2.04471096,174.54,174.52,0.65138047]
[1641054945752,14.2007247,174.54,174.52,0.65138047]
[1641054946452,2.05357455,174.55,174.52,0.65138047]
[1641054947053,12.21032205,174.54,174.52,0.65138047]
[1641054947454,12.21032205,174.54,174.51,0.65138047]
[1641054947954,14.2636244,174.55,174.51,4.72056127]
[1641054948256,17.2636244,174.55,174.51,4.72056127]
[1641054948455,3.0,174.54,174.52,0.65138047]
[1641054948654,17.2636244,174.55,174.52,0.65138047]
[1641054949255,14.2636244,174.53,174.52,0.65138047]
[1641054949855,2.05384656,174.54,174.5,0.65138047]
[1641054950655,12.2111574,174.53,174.5,0.65138047]
[1641054951255,6.49384656,174.54,174.5,0.65138047]
[1641054951456,3.0,174.53,174.5,0.65138047]
[1641054951859,3.0,174.52,174.5,0.65138047]
[1641054952056,3.0,174.51,174.49,4.0691808]
[1641054952258,3.0,174.5,174.48,4.07050309]
[1641054952557,3.0,174.49,174.44,4.7497218]
[1641054952756,3.0,174.48,174.44,4.7497218]
[1641054952956,3.0,174.48,174.38,27.66479]
[1641054952957,2.19566386,174.48,174.38,30.66479]
[1641054953156,3.0,174.47,174.38,30.66479]
[1641054953761,5.19566386,174.48,174.39,0.65153019]
[1641054953961,2.19566386,174.46,174.39,2.52754871]
[1641054954662,33.88766386,174.46,174.39,2.52754871]
[1641054954865,31.692,174.46,174.4,2.52754871]
[1641054955364,31.692,174.46,174.41,0.65153019]
[1641054955964,10.38525582,174.45,174.41,0.65153019]
[1641054956565,2.19566386,174.45,174.39,3.65153019]
[1641054956867,2.19566386,174.45,174.42,1.87602833]
[1641054957164,2.19566386,174.45,174.43,0.65153019]
[1641054957565,31.692,174.46,174.43,0.65153019]
[1641054957966,32.56436467,174.5,174.44,3.0]
[1641054958167,32.56436467,174.5,174.41,0.65153019]
[1641054958369,29.7561,174.55,174.41,0.65153019]
[1641054958568,33.39479229,174.53,174.41,0.65153019]
[1641054958769,33.39479229,174.53,174.41,32.53843019]
[1641054958968,3.25730791,174.52,174.41,32.53843019]
[1641054959369,32.5443,174.51,174.41,32.53843019]
[1641054959567,32.5443,174.51,174.42,0.65153019]
[1641054959968,32.5443,174.51,174.42,5.21653019]
[1641054960467,32.5443,174.51,174.43,0.65153019]
[1641054963370,3.0,174.5,174.43,0.65153019]
[1641054963570,6.2575829,174.5,174.43,0.65153019]
[1641054964171,3.0,174.46,174.43,0.65153019]
[1641054964373,3.0,174.48,174.42,0.65153019]
[1641054964571,27.66479,174.48,174.42,0.65153019]
[1641054964974,5.43514229,174.49,174.42,0.65153019]
[1641054965174,32.5443,174.51,174.42,0.65153019]
[1641054965573,3.25757842,174.5,174.42,0.65153019]
[1641054966475,5.43516411,174.5,174.42,0.65153019]
[1641054967274,2.17758569,174.49,174.43,1.87602008]
[1641054967874,2.17758569,174.49,174.44,0.65153019]
[1641054968074,10.74754499,174.5,174.44,0.65153019]
[1641054969278,10.74754499,174.5,174.42,0.65153019]
[1641054970278,10.74754499,174.5,174.43,1.87605058]
[1641054970777,10.74754499,174.5,174.44,0.65153019]
[1641054971180,2.17758569,174.5,174.44,0.65153019]
[1641054972179,34.74195036,174.5,174.44,0.65153019]
[1641054972580,62.40674036,174.5,174.42,0.65153019]
[1641054972781,29.84237569,174.5,174.42,0.65153019]
[1641054973581,10.74754499,174.49,174.43,1.87605381]
[1641054974082,10.74754499,174.49,174.44,0.65153019]
[1641054975882,10.74754499,174.49,174.42,0.65153019]
[1641054978187,13.74754499,174.49,174.42,0.65153019]
[1641054978388,10.74754499,174.49,174.42,0.65153019]
[1641054978586,5.17758569,174.48,174.42,0.65153019]
[1641054978788,3.0,174.45,174.42,0.65153019]
[1641054979287,32.4841,174.47,174.42,0.65153019]
[1641054979488,34.66168569,174.47,174.42,0.65153019]
[1641054979687,3.0,174.45,174.42,0.65153019]
[1641054980490,2.17758569,174.44,174.42,0.65153019]
[1641054980688,3.0,174.43,174.41,27.66479]
[1641054980888,3.0,174.42,174.34,32.2699]
[1641054981093,3.0,174.41,174.34,32.2699]
[1641054981690,2.17758569,174.4,174.35,1.87591473]
[1641054982889,2.17758569,174.4,174.36,0.65167879]
[1641054984196,42.88356638,174.41,174.36,0.65167879]
[1641054984394,30.66479,174.41,174.36,0.65167879]
[1641054984594,30.66479,174.41,174.35,0.65167879]
[1641054985701,2.18446811,174.4,174.35,0.65167879]
[1641054986496,5.18446811,174.4,174.35,0.65167879]
[1641054987296,2.18446811,174.39,174.35,0.65167879]
[1641054988098,2.18446811,174.39,174.33,0.65167879]
[1641054988701,12.21877638,174.38,174.32,27.66479]
[1641054989502,46.26484449,174.39,174.33,1.87585999]
[1641054990205,2.18446811,174.38,174.33,1.87585999]
[1641054994008,2.18446811,174.38,174.27,60.22915467]
[1641054994210,3.0,174.32,174.27,32.56436467]
[1641054994412,3.0,174.3,174.27,14.98436467]
[1641054994612,3.0,174.3,174.27,12.90660807]
[1641054994613,27.66479,174.28,174.27,12.90660807]
[1641054994813,27.66479,174.28,174.27,12.2222434]
[1641054995814,30.66479,174.28,174.23,0.68436467]
[1641054996016,30.66479,174.28,174.18,70.06239994]
[1641054996216,39.24294752,174.28,174.18,21.26479]
[1641054996916,3.0,174.23,174.18,21.26479]
[1641054997515,8.57815752,174.27,174.18,21.26479]
[1641054998817,3.0,174.23,174.18,21.26479]
[1641054999018,8.57815752,174.27,174.18,21.26479]
[1641055000420,32.2288,174.33,174.18,21.26479]
[1641055000620,3.0,174.28,174.24,27.66479]
[1641055000822,32.2288,174.33,174.24,27.66479]
[1641055001021,5.73624735,174.34,174.24,27.66479]
[1641055001622,3.0,174.3,174.24,27.66479]
[1641055001822,5.73624735,174.34,174.24,27.66479]
[1641055002026,3.0,174.3,174.24,27.66479]
[1641055005628,3.0,174.29,174.24,27.66479]
[1641055005830,36.89832294,174.34,174.24,27.66479]
[1641055006028,3.0,174.28,174.24,27.66479]
[1641055006229,3.0,174.31,174.24,27.66479]
[1641055006828,36.89832294,174.34,174.24,27.66479]
[1641055007332,3.0,174.3,174.24,27.66479]
[1641055008232,3.0,174.29,174.24,27.66479]
[1641055008632,3.0,174.28,174.24,27.66479]
[1641055008832,3.0,174.25,174.24,27.66479]
[1641055009033,3.0,174.32,174.15,30.6006]
[1641055009333,14.41624735,174.34,174.15,30.6006]
[1641055009334,3.0,174.25,174.15,30.6006]
[1641055010334,3.0,174.26,174.15,30.6006]
[1641055010632,3.0,174.26,174.23,27.66479]
[1641055011333,30.108,174.3,174.23,27.66479]
[1641055011934,3.0,174.26,174.23,27.66479]
[1641055014944,9.97781032,174.29,174.23,27.66479]
[1641055016346,3.0,174.26,174.23,27.66479]
[1641055016547,32.60513749,174.28,174.2,4.04066638]
[1641055016945,42.58294781,174.28,174.2,4.04066638]
[1641055017345,3.0,174.25,174.2,4.04066638]
[1641055017544,42.58294781,174.28,174.2,4.04066638]
[1641055018344,9.97781032,174.29,174.22,4.04066638]
[1641055018944,42.58294781,174.29,174.21,4.04066638]
[1641055020151,9.97781032,174.29,174.23,4.07533879]
[1641055020446,3.0,174.27,174.23,4.07533879]
[1641055020645,9.97781032,174.29,174.23,4.07533879]
[1641055021349,3.0,174.25,174.23,4.07533879]
[1641055021552,3.0,174.25,174.2,31.1085]
[1641055021746,9.97781032,174.29,174.19,27.66479]
[1641055021945,18.37781032,174.29,174.19,27.66479]
[1641055022145,18.37781032,174.29,174.19,32.31979]
[1641055022346,3.0,174.27,174.19,32.31979]
[1641055022547,18.37781032,174.29,174.19,32.31979]
[1641055022748,18.37781032,174.29,174.22,4.07549204]
[1641055023147,3.0,174.27,174.22,4.07549204]
[1641055023749,12.97781032,174.29,174.22,4.07549204]
[1641055023948,9.97781032,174.29,174.23,4.075319]
[1641055024648,9.97781032,174.29,174.26,27.66479]
[1641055024850,9.97781032,174.32,174.26,27.66479]
[1641055025951,3.0,174.3,174.26,27.66479]
[1641055026151,9.97781032,174.32,174.26,27.66479]
[1641055026352,3.0,174.3,174.26,27.66479]
[1641055026553,9.97781032,174.32,174.26,27.66479]
[1641055026953,12.22448133,174.29,174.26,27.66479]
[1641055027153,15.22448133,174.29,174.26,27.66479]
[1641055027455,9.97781032,174.32,174.26,27.66479]
[1641055027654,9.97781032,174.32,174.26,21.1451059]
[1641055027655,3.0,174.29,174.26,21.1451059]
[1641055028156,9.97781032,174.32,174.26,21.1451059]
[1641055028454,12.22438767,174.27,174.26,21.1451059]
[1641055028653,12.22438767,174.27,174.22,59.37159]
[1641055028855,12.22438767,174.27,174.22,27.66479]
[1641055029053,12.22438767,174.27,174.23,4.07503817]
[1641055029256,3.0,174.24,174.23,4.07503817]
[1641055029655,3.0,174.25,174.23,4.07503817]
[1641055029856,12.22438767,174.27,174.23,4.07503817]
[1641055030057,3.0,174.24,174.23,4.07503817]
[1641055030858,3.0,174.24,174.17,4.07503817]
[1641055031257,32.60513749,174.25,174.17,4.07503817]
[1641055032459,39.80016975,174.26,174.16,30.457]
[1641055034059,4.04512646,174.22,174.16,30.457]
[1641055034260,4.04512646,174.22,174.15,27.66479]
[1641055035969,3.0,174.23,174.15,27.66479]
[1641055036768,12.13537975,174.28,174.18,4.0]
[1641055036969,32.60513749,174.32,174.22,5.73361619]
[1641055037370,32.60513749,174.32,174.22,11.68861619]